Workbook

Sheet ensachage
D1: Données à remplir
A5: Année | B5: Mois | C5: Semaine | D5: Date | E5: Quart | F5: Quantité conditionnée par produit (kg) | G5: Ensachage (minutes) | H5: Ouverture (minutes)
A15: =IF(D15="","",YEAR(D15)) -> 2017 | B15: =IF(D15="","",MONTH(D15)) -> 10 | C15: =IF(D15="","",WEEKNUM(D15,21)) -> 40 | D15: 2017-10-02 | E15: J | F15: 1725 | G15: 05:45:00 | H15: 07:00:00
A16: =IF(D16="","",YEAR(D16)) -> 2017 | B16: =IF(D16="","",MONTH(D16)) -> 10 | C16: =IF(D16="","",WEEKNUM(D16,21)) -> 40 | D16: 2017-10-03 | E16: J | F16: 2600 | G16: 05:15:00 | H16: 07:00:00
A17: 2017 | B17: 10 | C17: 40 | D17: 2017-10-04 | E17: J | F17: 425 | G17: 05:45:00 | H17: 07:00:00
A18: 2017 | B18: 10 | C18: 40 | D18: 2017-10-05 | E18: J | F18: 600 | G18: 05:00:00 | H18: 07:00:00
A19: 2017 | B19: 10 | C19: 40 | D19: 2017-10-06 | E19: J | F19: 1075 | G19: 04:25:00 | H19: 07:00:00
A20: 2017 | B20: 10 | C20: 41 | D20: 2017-10-10 | E20: J | F20: 1700 | G20: 05:15:00 | H20: 07:00:00
A21: 2017 | B21: 10 | C21: 41 | D21: 2017-10-11 | E21: J | F21: 1825 | G21: 04:45:00 | H21: 07:00:00
A22: 2017 | B22: 10 | C22: 41 | D22: 2017-10-12 | E22: J | F22: 6050 | G22: 05:45:00 | H22: 07:00:00
A23: 2017 | B23: 10 | C23: 41 | D23: 2017-10-13 | E23: J | F23: 5100 | G23: 04:45:00 | H23: 07:00:00
A24: 2017 | B24: 10 | C24: 42 | D24: 2017-10-17 | E24: J | F24: 5250 | G24: 06:00:00 | H24: 07:00:00
A25: 2017 | B25: 10 | C25: 42 | D25: 2017-10-18 | E25: J | F25: 1650 | G25: 04:00:00 | H25: 07:00:00
A26: 2017 | B26: 10 | C26: 42 | D26: 2017-10-19 | E26: J | F26: 5325 | G26: 05:50:00 | H26: 07:00:00
A27: 2017 | B27: 10 | C27: 42 | D27: 2017-10-20 | E27: J | F27: 1075 | G27: 05:15:00 | H27: 07:00:00
A28: 2017 | B28: 10 | C28: 43 | D28: 2017-10-23 | E28: J | F28: 850 | G28: 05:30:00 | H28: 07:00:00
A29: 2017 | B29: 10 | C29: 43 | D29: 2017-10-24 | E29: J | F29: 2250 | G29: 05:05:00 | H29: 07:00:00
A30: 2017 | B30: 10 | C30: 43 | D30: 2017-10-25 | E30: J | F30: 2800 | G30: 04:45:00 | H30: 07:00:00
A31: 2017 | B31: 10 | C31: 43 | D31: 2017-10-26 | E31: J | F31: 3575 | G31: 05:00:00 | H31: 07:00:00
A32: 2017 | B32: 10 | C32: 43 | D32: 2017-10-27 | E32: J | F32: 500 | G32: 04:45:00 | H32: 07:00:00
A33: 2017 | B33: 10 | C33: 44 | D33: 2017-10-30 | E33: J | F33: 1925 | G33: 04:45:00 | H33: 07:00:00
A34: 2017 | B34: 10 | C34: 44 | D34: 2017-10-31 | E34: J | F34: 750 | G34: 05:45:00 | H34: 07:00:00
A38: =IF(D38="","",YEAR(D38)) ->  | B38: =IF(D38="","",MONTH(D38)) ->  | C38: =IF(D38="","",WEEKNUM(D38,21)) -> 
A102: =IF(D102="","",YEAR(D102)) ->  | B102: =IF(D102="","",MONTH(D102)) ->  | C102: =IF(D102="","",WEEKNUM(D102,21)) -> 
A166: =IF(D166="","",YEAR(D166)) ->  | B166: =IF(D166="","",MONTH(D166)) ->  | C166: =IF(D166="","",WEEKNUM(D166,21)) -> 
A230: =IF(D230="","",YEAR(D230)) ->  | B230: =IF(D230="","",MONTH(D230)) ->  | C230: =IF(D230="","",WEEKNUM(D230,21)) -> 
A294: =IF(D294="","",YEAR(D294)) ->  | B294: =IF(D294="","",MONTH(D294)) ->  | C294: =IF(D294="","",WEEKNUM(D294,21)) -> 
A358: =IF(D358="","",YEAR(D358)) ->  | B358: =IF(D358="","",MONTH(D358)) ->  | C358: =IF(D358="","",WEEKNUM(D358,21)) -> 
A422: =IF(D422="","",YEAR(D422)) ->  | B422: =IF(D422="","",MONTH(D422)) ->  | C422: =IF(D422="","",WEEKNUM(D422,21)) -> 
A486: =IF(D486="","",YEAR(D486)) ->  | B486: =IF(D486="","",MONTH(D486)) ->  | C486: =IF(D486="","",WEEKNUM(D486,21)) -> 
A550: =IF(D550="","",YEAR(D550)) ->  | B550: =IF(D550="","",MONTH(D550)) ->  | C550: =IF(D550="","",WEEKNUM(D550,21)) -> 
A614: =IF(D614="","",YEAR(D614)) ->  | B614: =IF(D614="","",MONTH(D614)) ->  | C614: =IF(D614="","",WEEKNUM(D614,21)) -> 
A678: =IF(D678="","",YEAR(D678)) ->  | B678: =IF(D678="","",MONTH(D678)) ->  | C678: =IF(D678="","",WEEKNUM(D678,21)) -> 
B742: =IF(D742="","",MONTH(D742)) -> 

Sheet Feuil1
A1: Année | B1: (Tous)
A2: Mois | B2: (Tous)
A3: Semaine | B3: (Tous)
I4: =((10000/420)*'Ouverture (minutes)'*1440-'Quantité conditionnée par produit (kg)')/(10000/420)/1440
A5: Étiquettes de lignes | B5: Quantité conditionnée par produit (kg) | C5: Ensachage (minutes) | D5: Ouverture (minutes) | E5: A justifier (théo en min) | F5: Somme de A justifier (%) | I5: Attendu | J5: diff. | K5: à justifier
A6: 2017-10-02 | B6: 1725 | C6: 05:45:00 | D6: 07:00:00 | E6: 0.05410264792 | F6: 0.8275 | I6: =10000/420*C6*1440 -> 8214.285714 | J6: =10000/420*C6*1440-B6 -> 6489.285714 | K6: =J6/(10000/420)/1440 -> 04:32:33
A7: 2017-10-03 | B7: 2600 | C7: 05:15:00 | D7: 07:00:00 | E7: 0.04838182413 | F7: 0.74 | I7: =10000/420*C7*1440 -> 7500 | J7: =10000/420*C7*1440-B7 -> 4900 | K7: =J7/(10000/420)/1440 -> 03:25:48
A8: 2017-10-04 | B8: 425 | C8: 05:45:00 | D8: 07:00:00 | E8: 0.06260215757 | F8: 0.9575 | I8: 8214.285714 | J8: =10000/420*C8*1440-B8 -> 7789.285714 | K8: 05:27:09
A9: 2017-10-05 | B9: 600 | C9: 05:00:00 | D9: 07:00:00 | E9: 0.06145799281 | F9: 0.94 | I9: 7142.857143 | J9: =10000/420*C9*1440-B9 -> 6542.857143 | K9: 04:34:48
A10: 2017-10-06 | B10: 1075 | C10: 04:25:00 | D10: 07:00:00 | E10: 0.05835240275 | F10: 0.8925 | I10: 6309.52381 | J10: =10000/420*C10*1440-B10 -> 5234.52381 | K10: 03:39:51
A11: 2017-10-10 | B11: 1700 | C11: 05:15:00 | D11: 07:00:00 | E11: 0.05426610003 | F11: 0.83 | I11: 7500 | J11: =10000/420*C11*1440-B11 -> 5800 | K11: 04:03:36
A12: 2017-10-11 | B12: 1825 | C12: 04:45:00 | D12: 07:00:00 | E12: 0.05344883949 | F12: 0.8175 | I12: 6785.714286 | J12: =10000/420*C12*1440-B12 -> 4960.714286 | K12: 03:28:21
A13: 2017-10-12 | B13: 6050 | C13: 05:45:00 | D13: 07:00:00 | E13: 0.02582543315 | F13: 0.395 | I13: 8214.285714 | J13: =10000/420*C13*1440-B13 -> 2164.285714 | K13: 01:30:54
A14: 2017-10-13 | B14: 5100 | C14: 04:45:00 | D14: 07:00:00 | E14: 0.03203661327 | F14: 0.49 | I14: 6785.714286 | J14: =10000/420*C14*1440-B14 -> 1685.714286 | K14: 01:10:48
A15: 2017-10-17 | B15: 5250 | C15: 06:00:00 | D15: 07:00:00 | E15: 0.03105590062 | F15: 0.475 | I15: 8571.428571 | J15: =10000/420*C15*1440-B15 -> 3321.428571 | K15: 02:19:30
A16: 2017-10-18 | B16: 1650 | C16: 04:00:00 | D16: 07:00:00 | E16: 0.05459300425 | F16: 0.835 | I16: 5714.285714 | J16: =10000/420*C16*1440-B16 -> 4064.285714 | K16: 02:50:42
A17: 2017-10-19 | B17: 5325 | C17: 05:50:00 | D17: 07:00:00 | E17: 0.0305655443 | F17: 0.4675 | I17: 8333.333333 | J17: =10000/420*C17*1440-B17 -> 3008.333333 | K17: 02:06:21
A18: 2017-10-20 | B18: 1075 | C18: 05:15:00 | D18: 07:00:00 | E18: 0.05835240275 | F18: 0.8925 | I18: 7500 | J18: =10000/420*C18*1440-B18 -> 6425 | K18: 04:29:51
A19: 2017-10-23 | B19: 850 | C19: 05:30:00 | D19: 07:00:00 | E19: 0.05982347172 | F19: 0.915 | I19: 7857.142857 | J19: =10000/420*C19*1440-B19 -> 7007.142857 | K19: 04:54:18
A20: 2017-10-24 | B20: 2250 | C20: 05:05:00 | D20: 07:00:00 | E20: 0.05067015364 | F20: 0.775 | I20: 7261.904762 | J20: =10000/420*C20*1440-B20 -> 5011.904762 | K20: 03:30:30
A21: 2017-10-25 | B21: 2800 | C21: 04:45:00 | D21: 07:00:00 | E21: 0.04707420726 | F21: 0.72 | I21: 6785.714286 | J21: =10000/420*C21*1440-B21 -> 3985.714286 | K21: 02:47:24
A22: 2017-10-26 | B22: 3575 | C22: 05:00:00 | D22: 07:00:00 | E22: 0.04200719189 | F22: 0.6425 | I22: 7142.857143 | J22: =10000/420*C22*1440-B22 -> 3567.857143 | K22: 02:29:51
A23: 2017-10-27 | B23: 500 | C23: 04:45:00 | D23: 07:00:00 | E23: 0.06211180124 | F23: 0.95 | I23: 6785.714286 | J23: =10000/420*C23*1440-B23 -> 6285.714286 | K23: 04:24:00
A24: 2017-10-30 | B24: 1925 | C24: 04:45:00 | D24: 07:00:00 | E24: 0.05279503106 | F24: 0.8075 | I24: 6785.714286 | J24: =10000/420*C24*1440-B24 -> 4860.714286 | K24: 03:24:09
A25: 2017-10-31 | B25: 750 | C25: 05:45:00 | D25: 07:00:00 | E25: 0.06047728016 | F25: 0.925 | I25: 8214.285714 | J25: =10000/420*C25*1440-B25 -> 7464.285714 | K25: 05:13:30
A26: Total général | E26: 1 | F26: 0.76475
